bitfinex-derivatives/quotes_ETHF0:USTF0_20251107
["timestamp","ask_amount","ask_price","bid_price","bid_amount"]
[1762525541496,3.2078,3230.9,3230.7,0.50175]
[1762525541692,3.2078,3230.9,3230.3,0.50181]
[1762525541898,0.75197,3230.6,3230.5,0.00464288]
[1762525542300,9.53028038,3230.6,3230.5,0.00464288]
[1762525542502,0.50197,3229.4,3229.2,3.2078]
[1762525542699,0.50197,3229.3,3229.2,0.50198]
[1762525542898,3.2078,3229.6,3229.0,0.1545]
[1762525543399,0.7522,3229.1,3229.0,0.51023398]
[1762525543901,0.50198,3229.2,3229.0,0.00821398]
[1762525544098,3.21508576,3229.6,3229.0,0.00821398]
[1762525544402,3.71701576,3229.6,3229.5,0.50194]
[1762525544799,0.50195,3229.5,3229.2,0.1545]
[1762525545202,0.00728576,3229.6,3229.5,0.75414]
[1762525545700,0.50196,3229.4,3229.1,0.502]
[1762525545892,3.21508576,3229.6,3229.5,0.50194]
[1762525546096,0.50194,3229.5,3229.4,0.50194]
[1762525546798,3.71700576,3229.6,3229.5,0.50194]
[1762525547001,0.50196,3229.5,3229.4,0.50195]
[1762525547295,3.21508576,3229.6,3229.2,0.1545]
[1762525547494,0.502,3229.1,3229.0,0.51021398]
[1762525548113,0.50196,3229.5,3229.4,0.50194]
[1762525548301,3.21508576,3229.6,3229.0,0.00821398]
[1762525548610,3.21508576,3229.6,3229.5,0.50194]
[1762525549504,0.50198,3229.2,3229.1,0.502]
[1762525549710,3.21508576,3229.6,3229.2,0.1545]
[1762525550009,3.71700576,3229.6,3229.5,0.50194]
[1762525550708,3.21508576,3229.6,3229.5,0.50194]
[1762525550906,0.00728576,3229.6,3229.5,0.90864]
[1762525551107,3.21508576,3229.6,3229.5,0.65644]
[1762525551502,3.21508576,3229.6,3229.5,0.90864]
[1762525551709,0.00728576,3229.6,3229.5,0.90864]
[1762525552209,0.50920576,3229.6,3229.5,0.65644]
[1762525553202,0.00728576,3229.6,3229.5,0.90864]
[1762525554003,3.2078,3230.1,3230.0,0.90856]
[1762525554208,3.2078,3230.1,3229.6,3.2078]
[1762525554405,3.2078,3230.1,3229.6,0.50192]
[1762525554602,0.50191,3229.7,3229.5,8.8335]
[1762525554803,3.2078,3230.1,3229.5,0.1545]
[1762525555007,0.50189,3229.9,3229.8,0.50188]
[1762525555219,0.50192,3229.7,3229.5,0.1545]
[1762525555908,0.50192,3229.6,3229.5,0.1545]
[1762525556115,0.50196,3229.4,3229.3,0.50195]
[1762525556420,0.50197,3229.3,3229.2,0.65648]
[1762525556913,3.70977,3229.3,3229.2,0.65648]
[1762525557115,3.70977,3229.3,3229.2,0.1545]
[1762525557817,3.2078,3229.3,3229.2,0.65648]
[1762525558211,3.70977,3229.3,3229.2,0.65648]
[1762525558414,3.70977,3229.3,3229.2,0.1545]
[1762525558609,3.95997,3229.3,3229.2,5.59]
[1762525559108,0.7522,3229.1,3229.0,0.00821398]
[1762525559509,8.7522,3229.1,3229.0,0.00821398]
[1762525560212,8.2502,3229.1,3227.8,3.2078]
[1762525560414,0.50213,3228.3,3228.1,5.419]
[1762525560615,0.50211,3228.4,3228.3,0.5021]
[1762525560917,3.70988,3228.6,3228.5,0.50209]
[1762525561317,3.70988,3228.6,3228.5,0.50556058]
[1762525561511,3.2078,3229.0,3228.5,0.14667058]
[1762525561711,3.2078,3229.0,3228.9,0.50203]
[1762525561912,3.2078,3229.6,3229.5,0.50193]
[1762525562113,3.2078,3229.6,3229.5,0.89343]
[1762525562511,3.2078,3229.6,3229.5,8.23943]
[1762525563212,3.70972,3229.6,3229.5,8.23944]
[1762525563613,3.2078,3229.6,3229.5,8.23944]
[1762525564016,3.2078,3230.0,3229.9,0.50188]
[1762525564215,3.2078,3230.0,3229.9,0.75018]
[1762525564407,0.50883899,3230.1,3230.0,0.50186]
[1762525564613,0.00698899,3230.1,3230.0,0.75016]
[1762525565110,0.00698899,3230.1,3230.0,10.39916]
[1762525566318,3.2078,3230.8,3230.7,0.75005]
[1762525566918,3.2078,3230.8,3230.7,10.39905]
[1762525567120,0.50169,3231.2,3231.1,0.2483]
[1762525567321,3.2078,3231.3,3231.2,0.50167]
[1762525567924,0.50167,3231.2,3231.1,0.00354643]
[1762525568519,0.50167,3231.2,3231.1,0.50523643]
[1762525568915,3.21023742,3231.3,3231.2,0.50167]
[1762525569116,3.71189742,3231.3,3231.2,0.50167]
[1762525569319,3.71189742,3231.3,3231.1,0.00354643]
[1762525569320,0.50167,3231.2,3231.1,0.00354643]
[1762525569518,3.21023742,3231.3,3231.1,0.00354643]
[1762525569722,3.21023742,3231.3,3231.2,0.74997]
[1762525570025,0.00243742,3231.3,3231.2,0.74997]
[1762525570211,0.00124072,3231.5,3231.4,0.74994]
[1762525570417,3.2078,3232.1,3232.0,0.50155]
[1762525570621,3.70933,3232.1,3231.6,0.1432]
[1762525570816,0.50155,3232.0,3231.9,0.50156]
[1762525571222,0.00323658,3232.0,3231.9,0.50156]
[1762525571827,0.00323658,3232.0,3231.9,0.74986]
[1762525572221,0.50478658,3232.0,3231.9,10.14556]
[1762525572524,0.00323658,3232.0,3231.1,0.00354643]
[1762525572723,0.00323658,3232.0,3231.9,0.50156]
[1762525573126,0.00323658,3232.0,3231.9,10.39386]
[1762525573727,0.00323658,3232.0,3231.9,13.60166]
[1762525574424,0.00323658,3232.0,3231.9,10.39286]
[1762525575923,0.00323658,3232.0,3231.9,13.60066]
[1762525576126,0.00464288,3232.3,3232.2,0.74982]
[1762525576325,3.2078,3232.9,3232.8,0.74972]
[1762525576522,3.2078,3233.8,3233.7,0.50128]
[1762525576724,3.2078,3233.8,3233.7,10.14228]
[1762525576927,3.4471,3233.8,3233.7,9.641]
[1762525577127,3.45066351,3233.8,3233.7,0.50439766]
[1762525577326,3.95193351,3233.8,3233.7,0.00310766]
[1762525577738,3.21136351,3233.8,3233.7,0.00310766]
[1762525577924,3.71263351,3233.8,3233.7,0.00310766]
[1762525578831,3.21136351,3233.8,3233.7,0.00310766]
[1762525579131,3.21136351,3233.8,3233.7,0.50439766]
[1762525579326,0.00356351,3233.8,3233.7,0.75269766]
[1762525579627,0.00464288,3234.1,3234.0,0.89274]
[1762525580228,0.00464288,3234.1,3234.0,0.3915]
[1762525580426,0.00464288,3234.1,3234.0,4.0762]
[1762525580427,0.50586288,3234.1,3234.0,4.0762]
[1762525580734,0.0070012,3234.1,3234.0,4.57744]
[1762525581031,0.0070012,3234.1,3233.7,0.00310766]
[1762525581225,0.50124,3234.0,3233.7,9.63910766]
[1762525581433,0.0070012,3234.1,3234.0,0.64444]
[1762525581724,0.50125,3233.9,3233.7,9.63910766]
[1762525582034,0.50124,3234.0,3233.8,9.635]
[1762525582233,0.50124,3234.0,3233.8,10.13627]
[1762525582428,0.50124,3234.0,3233.9,0.50125]
[1762525582628,0.0070012,3234.1,3233.8,9.635]
[1762525583129,0.0070012,3234.1,3234.0,0.89274]
[1762525584132,0.0070012,3234.1,3234.0,0.3915]
[1762525584335,0.0070012,3234.1,3234.0,5.06574]
[1762525584531,0.5082212,3234.1,3234.0,4.5645]
[1762525584835,0.0070012,3234.1,3234.0,9.633]
[1762525585028,0.50125,3234.0,3233.9,0.50125]
[1762525585237,0.50127,3233.9,3233.8,0.50127]
[1762525585427,3.2078,3233.9,3233.7,4.36438766]
[1762525585731,3.2078,3233.9,3233.8,0.50127]
[1762525586037,3.2078,3233.9,3233.8,0.74957]
[1762525586630,3.70905,3233.9,3233.8,4.096]
[1762525586833,3.2078,3233.9,3233.8,0.50127]
[1762525587036,3.2078,3233.9,3233.8,0.74957]
[1762525587725,3.2078,3233.9,3233.7,3.86310766]
[1762525587726,0.0070012,3234.1,3234.0,0.89274]
[1762525589733,0.0070012,3234.1,3234.0,5.06674]
[1762525590234,0.0070012,3234.1,3234.0,0.89274]
[1762525590435,0.0070012,3234.1,3234.0,5.06674]
[1762525592747,0.0070012,3234.1,3234.0,10.52074]
[1762525593238,0.0070012,3234.1,3234.0,10.51974]
[1762525593636,3.2078,3234.9,3234.8,0.73551]
[1762525594433,3.2078,3234.9,3234.8,10.36151]
[1762525594640,3.2078,3235.3,3235.2,0.73545]
[1762525594841,3.21095254,3235.3,3235.2,0.73545]
[1762525595344,0.00315254,3235.3,3235.2,10.36045]
[1762525595844,0.00298661,3235.6,3235.5,0.88501]
[1762525596449,3.2078,3235.7,3235.6,0.73539]
[1762525596744,4.681e-05,3235.7,3235.6,0.73539]
[1762525598437,4.681e-05,3235.7,3235.6,0.2344]
[1762525598639,4.681e-05,3235.7,3235.6,10.35839]
[1762525599344,3.20784681,3235.7,3235.6,0.50099]
[1762525599940,0.50099,3235.6,3235.5,9.7716]
[1762525600535,0.247,3235.6,3235.2,0.00464288]
[1762525600735,0.50104,3235.4,3235.2,0.00464288]
[1762525600938,3.96394,3235.3,3235.2,0.00464288]
[1762525601138,0.50116,3234.6,3234.4,0.50118]
[1762525601447,0.50119,3234.4,3234.3,0.50119]
[1762525601940,3.2078,3234.5,3234.0,0.1432]
[1762525602140,0.00464288,3234.6,3234.5,0.64606]
[1762525602340,0.7792524,3234.6,3234.5,0.64606]
[1762525602540,1.2804024,3234.6,3234.5,0.64606]
[1762525603048,0.00464288,3234.6,3234.5,0.88436]
[1762525603341,0.00464288,3234.6,3234.1,3.2078]
[1762525603545,0.75627,3234.5,3234.4,0.50118]
[1762525603745,0.75627,3234.5,3234.1,3.2078]
[1762525603746,1.27650812,3234.5,3234.1,3.2078]
[1762525603947,0.50116,3234.5,3234.4,0.50118]
[1762525604146,0.77538258,3234.5,3234.4,0.50118]
[1762525604347,1.27654258,3234.5,3234.4,0.50118]
[1762525604841,0.77538258,3234.5,3234.4,0.73948]
[1762525605047,0.00464288,3234.6,3234.5,0.88436]
[1762525605746,0.77656614,3235.1,3235.0,0.88428]
[1762525606150,3.20784681,3235.7,3235.6,0.50099]
[1762525606351,0.50101,3235.5,3235.0,0.1449]
[1762525606551,3.70884,3235.3,3235.1,10.12006]
[1762525606842,0.77587685,3235.2,3234.5,0.1449]
[1762525607043,0.50111,3234.8,3234.5,0.1449]
[1762525607243,0.50115,3234.6,3234.5,0.1449]
[1762525607446,11.2078,3234.9,3233.6,3.464]
[1762525607753,0.50122,3234.1,3234.0,0.64442]
[1762525607948,0.50122,3234.1,3234.0,0.1432]
[1762525608646,0.50124,3234.0,3233.4,3.2078]
[1762525608844,3.2078,3234.2,3233.4,3.2078]
[1762525609147,0.76945408,3234.1,3234.0,0.64614]
[1762525609449,0.76945408,3234.1,3233.9,0.50589288]
[1762525609454,0.50124,3234.0,3233.9,0.50589288]
[1762525609650,1.27069408,3234.0,3233.9,0.50589288]
[1762525610146,1.52579408,3234.0,3233.9,0.00464288]
[1762525610448,1.02455408,3234.0,3233.9,0.00464288]
[1762525610648,1.52579408,3234.0,3233.9,0.00464288]
[1762525611259,1.52579408,3234.0,3233.0,3.3527]
[1762525611260,0.50138,3233.1,3233.0,0.1449]
[1762525611550,0.1238,3233.0,3232.4,0.50149]
[1762525611754,0.2551,3232.5,3232.4,0.50149]
[1762525612252,3.4629,3232.7,3232.6,0.50146]
[1762525612456,4.23491087,3232.7,3232.4,0.00397389]
[1762525612651,0.75657,3232.5,3232.4,0.00397389]
[1762525613846,8.75657,3232.5,3232.4,0.00397389]
[1762525614047,0.2551,3232.2,3231.6,3.2078]
[1762525614254,3.2078,3231.8,3231.1,3.2078]
[1762525614455,3.2078,3231.8,3231.2,3.321]
[1762525614651,3.2078,3231.8,3231.7,0.5016]
[1762525615150,3.70938,3231.8,3231.7,0.00223464]
[1762525615346,3.96448,3231.8,3231.7,0.00223464]
[1762525615754,0.2551,3231.1,3231.0,0.5017]
[1762525616347,3.2078,3231.3,3231.2,0.50167]
[1762525616554,3.2078,3231.8,3231.7,0.5016]
[1762525616748,3.4629,3231.8,3231.7,0.0023057]
[1762525617856,3.96448,3231.8,3231.7,0.5039057]
[1762525618159,3.4629,3231.8,3231.7,0.0023057]
[1762525619050,11.4629,3231.8,3231.7,0.0023057]
[1762525619256,0.74853,3231.5,3231.4,0.00464288]
[1762525619557,0.50161,3231.6,3231.4,0.00464288]
[1762525620159,0.50161,3231.6,3231.4,0.00717129]
[1762525620357,3.2078,3231.8,3231.5,0.50163]
[1762525620560,3.2078,3231.8,3231.4,0.00717129]
[1762525620758,3.70938,3231.8,3231.5,0.50162]
[1762525620958,0.5016,3231.7,3231.5,0.50162]
[1762525621160,0.00464288,3232.1,3232.0,0.50155]
[1762525621359,0.50162,3231.6,3231.4,0.00717129]
[1762525621562,3.2078,3231.5,3231.4,0.00717129]
[1762525621957,3.2078,3231.5,3231.4,0.24857129]
[1762525622363,3.95633,3231.5,3231.4,0.00717129]
[1762525623659,3.70943,3231.5,3231.4,0.50881129]
[1762525623858,3.2078,3231.5,3231.4,0.50881129]
[1762525624055,3.2078,3231.5,3231.4,0.75021129]
[1762525624460,3.70943,3231.5,3231.4,0.00717129]
[1762525624656,3.95633,3231.5,3231.4,0.00717129]
[1762525624857,3.70943,3231.5,3231.4,0.00717129]
[1762525625056,3.2078,3231.5,3231.4,0.50881129]
[1762525625260,3.95633,3231.5,3231.4,0.00717129]
[1762525625465,3.95633,3231.5,3231.4,0.50881129]
[1762525625665,3.95633,3231.5,3231.4,0.00717129]
[1762525626465,3.95633,3231.5,3231.4,0.50881129]
[1762525626666,3.4547,3231.5,3231.4,0.50881129]
[1762525626965,3.2078,3231.5,3231.4,0.50881129]
[1762525627365,0.5016,3231.7,3231.6,0.50159]
[1762525627870,0.50158,3231.9,3231.8,0.50157]
[1762525628769,3.70935,3232.0,3231.9,0.50156]
[1762525628976,3.2078,3232.0,3231.9,0.74296]
[1762525629270,0.50157,3231.9,3231.5,0.1487]
[1762525629573,0.50161,3231.6,3231.5,0.50161]
[1762525629869,0.74853,3231.5,3231.4,0.00717129]
[1762525630071,0.74853,3231.5,3231.4,0.50881129]
[1762525630672,0.2469,3231.9,3231.8,0.50158]
[1762525630880,3.2078,3232.0,3231.9,0.50156]
[1762525631067,3.2078,3232.0,3231.5,0.1487]
[1762525631270,0.50159,3231.8,3231.7,0.50157]
[1762525631472,0.74853,3231.5,3231.4,0.00717129]
[1762525631681,3.95633,3231.5,3231.4,0.00717129]
[1762525631980,3.95633,3231.5,3231.4,0.50881129]
[1762525632178,3.2078,3231.5,3231.4,0.00717129]
[1762525632374,3.95633,3231.5,3231.4,0.50881129]
[1762525632779,3.2078,3231.5,3231.4,0.50881129]
[1762525633188,3.2078,3231.5,3231.4,0.75021129]
[1762525633982,3.21244288,3232.1,3231.5,0.1487]
[1762525634273,0.50156,3232.0,3231.9,0.50156]
[1762525634468,0.74846,3232.0,3231.9,0.50156]
[1762525634667,0.74846,3232.0,3231.5,0.1487]
[1762525634868,0.50158,3231.9,3231.8,0.50158]
[1762525635476,3.96089288,3232.1,3232.0,0.50155]
[1762525635780,3.45934288,3232.1,3232.0,0.50155]
[1762525635983,0.50158,3231.8,3231.5,0.1487]
[1762525636178,0.50157,3231.9,3231.5,0.1487]
[1762525636379,0.50159,3231.8,3231.7,0.50158]
[1762525636576,3.21244288,3232.1,3231.4,0.00717129]
[1762525636780,0.50163,3231.5,3231.4,0.50881129]
[1762525637180,0.50157,3231.9,3231.8,0.50158]
[1762525637379,0.2469,3231.9,3231.8,0.50158]
[1762525637580,0.74846,3231.9,3231.8,0.50158]
[1762525637779,0.5016,3231.7,3231.6,0.5016]
[1762525638181,0.50161,3231.6,3231.5,0.1487]
[1762525639086,3.2078,3231.7,3231.6,0.50161]
[1762525639480,0.74853,3231.5,3231.4,0.50880129]
[1762525639684,0.74853,3231.5,3231.4,0.00717129]
[1762525640190,0.2469,3231.5,3231.4,0.50881129]
[1762525640390,0.50161,3231.6,3231.5,0.50163]
[1762525640682,0.74853,3231.5,3231.4,0.50881129]
[1762525641086,3.2078,3231.7,3231.6,0.50161]
[1762525641282,3.97684271,3231.7,3231.6,0.50161]
[1762525641587,0.76904271,3231.7,3231.6,0.50161]
[1762525641785,0.76904271,3231.7,3231.6,0.74301]
[1762525642286,0.00464288,3232.1,3232.0,0.65025]
[1762525642478,0.77404866,3232.1,3232.0,0.65025]
[1762525643082,0.77404866,3232.1,3232.0,0.89165]
[1762525643290,4.22874866,3232.1,3231.7,9.616]
[1762525643485,0.25154288,3232.1,3232.0,0.50155]
[1762525643678,1.02115613,3232.1,3232.0,0.50155]
[1762525643877,0.77425613,3232.1,3232.0,0.50155]
[1762525644084,0.77425613,3232.1,3232.0,0.65025]
[1762525644279,0.00464288,3232.1,3232.0,0.65025]
[1762525644791,0.00464288,3232.1,3232.0,0.89165]
[1762525644991,0.77400601,3232.1,3232.0,0.65025]
[1762525645183,1.27553601,3232.1,3232.0,0.1487]
[1762525645379,1.27553601,3232.1,3231.7,9.616]
[1762525645583,0.00464288,3232.1,3232.0,0.50155]
[1762525645785,1.2754017,3232.1,3232.0,0.50155]
[1762525645984,0.7738717,3232.1,3232.0,0.50155]
[1762525647392,0.00464288,3232.1,3232.0,0.65025]
[1762525647787,0.00464288,3232.1,3232.0,0.89165]
[1762525648388,0.00464288,3232.1,3232.0,8.89165]
[1762525649491,0.00464288,3232.1,3232.0,0.89165]
[1762525649692,0.00464288,3232.1,3232.0,10.50465]
[1762525649893,0.00464288,3232.1,3232.0,10.50685]
[1762525650095,0.00295839,3232.7,3232.6,0.74505]
[1762525650293,0.00295839,3232.7,3232.0,17.7617]
[1762525650294,0.24535839,3232.7,3232.0,0.1487]
[1762525650495,3.2078,3232.5,3232.4,0.50148]
[1762525651200,3.2078,3232.5,3232.4,0.74508]
[1762525651400,0.00295839,3232.7,3232.6,0.74505]
[1762525651589,0.00295839,3232.7,3232.6,10.35705]
[1762525651797,3.2078,3233.5,3233.4,0.50133]
[1762525651993,3.2078,3233.5,3233.4,0.74493]
[1762525652701,3.4502,3233.9,3233.8,0.50127]
[1762525652898,3.45380471,3233.9,3233.8,0.50404546]
[1762525653195,3.21140471,3233.9,3233.8,0.50404546]
[1762525653397,3.45380471,3233.9,3233.8,0.50404546]
[1762525653795,0.00360471,3233.9,3233.8,0.50404546]
[1762525654795,0.00464288,3234.2,3234.1,0.74482]
[1762525654998,0.00464288,3234.2,3234.1,10.35382]
[1762525655495,0.00464288,3234.2,3234.1,9.609]
[1762525655697,0.00464288,3234.2,3234.1,9.8526]
[1762525655896,0.0082082,3234.2,3234.1,9.8526]
[1762525656090,3.2078,3234.8,3234.7,0.74473]
[1762525656298,3.4502,3235.2,3235.1,0.50107]
[1762525657103,3.95416924,3235.2,3234.8,0.00464288]
[1762525657298,3.45310924,3235.2,3235.0,0.64688]
[1762525657601,3.21070924,3235.2,3235.0,0.64688]
[1762525657796,3.21070924,3235.2,3235.0,0.1458]
[1762525657797,3.71176924,3235.2,3235.0,0.1458]
[1762525657992,3.71176924,3235.2,3235.0,0.64688]
[1762525658206,3.21070924,3235.2,3235.1,0.74467]
[1762525658904,3.21070924,3235.2,3234.8,0.00464288]
[1762525658905,3.45310924,3235.2,3234.9,4.172]
[1762525659089,0.50108,3235.1,3234.9,4.172]
[1762525659290,0.2424,3234.9,3234.8,0.00464288]
[1762525660307,0.50122,3234.2,3233.9,0.50125]
[1762525660601,0.50121,3234.2,3233.7,0.50127]
[1762525660804,3.2078,3234.0,3233.8,0.50404546]
[1762525661002,0.252,3233.9,3233.8,0.00277546]
[1762525661300,3.2078,3234.0,3233.8,0.50403546]
[1762525661702,3.2078,3234.0,3233.9,0.2578]
[1762525661999,3.2078,3234.0,3233.8,0.50403546]
[1762525662505,3.2078,3234.0,3233.9,0.2578]
[1762525662698,0.252,3233.9,3233.8,0.00277546]
[1762525664908,8.252,3233.9,3233.8,0.00277546]
[1762525665204,0.252,3233.0,3232.5,3.3629]
[1762525665393,0.50139,3233.1,3232.5,3.3629]
[1762525665594,3.2078,3233.2,3232.5,3.3629]
[1762525665595,0.75341,3232.9,3232.8,0.50141]
[1762525665997,0.50141,3232.9,3232.8,0.50141]
[1762525666307,3.46444288,3233.2,3233.1,0.50138]
[1762525666502,0.252,3233.0,3232.8,0.00355139]
[1762525666810,3.21643443,3233.2,3232.8,0.00355139]
[1762525666811,3.21643443,3233.2,3233.0,0.1551]
[1762525667103,0.00863443,3233.2,3233.1,0.50138]
[1762525667300,0.00863443,3233.2,3233.1,0.75918]
[1762525668700,3.2078,3233.7,3233.2,0.2578]
[1762525668903,3.2078,3233.7,3233.6,0.7591]
[1762525669111,3.2078,3233.7,3233.6,0.5013]
[1762525669507,0.50125,3234.0,3233.8,0.50125]
[1762525669707,0.00234061,3234.0,3233.9,0.50125]
[1762525670010,0.50358061,3234.0,3233.9,0.50125]
[1762525670202,0.00234061,3234.0,3233.4,0.1551]
[1762525670406,0.5013,3233.6,3233.5,0.5013]
[1762525671001,3.2078,3233.7,3233.4,0.1551]
[1762525671201,3.2078,3233.7,3233.0,0.1551]
[1762525671402,0.50131,3233.5,3233.4,0.50131]
[1762525671598,3.2078,3233.7,3233.5,0.5013]
[1762525671599,0.7533,3233.6,3233.5,0.5013]
[1762525672006,3.2078,3233.7,3233.0,0.1551]
[1762525672203,0.50132,3233.5,3233.0,0.1551]
[1762525672508,0.05224061,3234.0,3233.0,0.1551]
[1762525672710,0.252,3232.9,3232.8,0.00355139]
[1762525673007,0.75341,3232.9,3232.8,0.00355139]
[1762525673410,3.96121,3232.9,3232.8,0.00355139]
[1762525676109,0.252,3232.1,3231.7,3.2078]
[1762525676412,0.252,3231.7,3231.0,7.7661]
[1762525676713,3.2078,3231.4,3231.3,0.50166]
[1762525676914,0.252,3231.6,3231.5,0.50162]
[1762525677215,0.25486348,3231.6,3231.5,0.50552692]
[1762525677608,0.00286348,3231.6,3231.5,0.91842692]
[1762525678315,0.75647348,3231.6,3231.5,0.00390692]
[1762525678507,0.00286348,3231.6,3231.5,0.50553692]
[1762525678815,0.25486348,3231.6,3231.5,0.50553692]
[1762525679611,0.75647348,3231.6,3231.5,0.00390692]
[1762525679807,0.25486348,3231.6,3231.5,0.50552692]
[1762525680013,0.00286348,3231.6,3231.5,0.89412692]
[1762525680306,0.0968,3232.5,3231.5,0.89412692]
[1762525680307,3.2078,3232.6,3232.5,0.50147]
[1762525680509,3.2078,3233.5,3232.5,0.1483]
[1762525680709,0.50133,3233.4,3233.2,0.50136]
[1762525680910,3.2078,3233.5,3232.5,0.1483]
[1762525681111,3.2078,3232.6,3232.5,0.50147]
[1762525681409,3.21139624,3232.6,3232.5,0.50147]
[1762525681816,0.00359624,3232.6,3232.5,0.50147]
[1762525682010,0.00359624,3232.6,3232.5,0.74177]
[1762525682412,0.00359624,3232.6,3232.3,0.50149]
[1762525682613,0.00359624,3232.6,3232.4,0.50148]
[1762525682917,0.00359624,3232.6,3232.2,3.21244288]
[1762525683212,0.754,3232.3,3232.2,0.00464288]
[1762525683416,0.2525,3232.3,3232.2,0.00464288]
[1762525683614,0.00359624,3232.6,3232.5,0.74177]
[1762525684511,0.00359624,3232.6,3232.5,0.50147]
[1762525684817,0.00359624,3232.6,3232.4,0.50147]
[1762525685018,0.00359624,3232.6,3232.5,0.50147]
[1762525686011,0.00359624,3232.6,3232.5,0.74177]
[1762525686215,0.00359624,3232.6,3232.5,0.50147]
[1762525686828,0.00359624,3232.6,3232.5,0.74177]
[1762525687118,0.00359624,3232.6,3232.5,0.50147]
[1762525687518,0.00359624,3232.6,3232.5,0.74177]
[1762525687720,0.00464288,3232.9,3232.8,0.89002]
[1762525687917,4.288e-05,3232.9,3232.8,4.09782]
[1762525688220,4.288e-05,3232.9,3232.8,21.69282]
[1762525688421,3.2078,3233.5,3233.4,0.88993]
[1762525688818,3.21083105,3233.5,3232.8,12.9511]
[1762525689011,3.21083105,3233.5,3232.8,3.3561]
[1762525689213,3.71215105,3233.5,3233.3,0.50134]
[1762525689416,0.50135,3233.3,3233.2,0.50134]
[1762525689918,3.21083105,3233.5,3233.4,0.64963]
[1762525690518,0.00303105,3233.5,3233.4,0.88993]
[1762525692317,0.25553105,3233.5,3233.4,0.50133]
[1762525692512,0.50434105,3233.5,3233.4,0.64963]
[1762525692719,0.00303105,3233.5,3233.4,0.64963]
[1762525693126,0.00303105,3233.5,3233.4,0.50133]
[1762525693416,0.50135,3233.3,3233.2,0.50133]
[1762525693824,0.50137,3233.2,3232.9,3.2078]
[1762525694321,0.75389,3233.0,3232.9,3.7092]
[1762525694514,3.2078,3233.0,3232.4,3.2078]
[1762525694713,3.70919,3233.0,3232.8,0.50142]
[1762525694919,0.50141,3232.9,3232.8,0.50142]
[1762525695120,3.96171,3233.0,3232.9,0.5014]
[1762525695320,0.50142,3232.9,3232.4,3.2078]
[1762525696123,3.2078,3233.0,3232.9,0.50141]
[1762525697123,0.50141,3232.9,3232.8,0.1483]
[1762525697322,0.50141,3232.9,3232.8,0.50142]
[1762525698025,0.50144,3232.8,3232.7,0.50142]
[1762525699326,0.50144,3232.7,3232.5,0.50147]
[1762525699522,0.50144,3232.7,3232.6,0.50145]
[1762525699724,0.50144,3232.7,3232.2,0.15294288]
[1762525700021,3.70921,3233.0,3232.9,0.50141]
[1762525700226,3.70919,3233.0,3232.9,0.50141]
[1762525701435,3.2078,3233.0,3232.7,0.50144]
[1762525701735,0.50144,3232.7,3232.6,0.50145]
[1762525701925,0.2525,3232.8,3232.7,0.50143]
[1762525702329,0.50142,3232.8,3232.7,0.50142]
[1762525702726,0.50141,3232.9,3232.8,0.50141]
[1762525703328,0.50142,3232.8,3232.7,0.50144]
[1762525703532,3.2078,3233.0,3232.5,0.1483]
[1762525704034,3.2078,3233.0,3232.4,3.2078]
[1762525704328,0.754,3232.3,3232.2,0.00464288]
[1762525704525,0.2525,3232.3,3232.2,0.00464288]
[1762525704728,3.2078,3232.5,3232.2,0.00464288]
[1762525704935,3.2078,3232.9,3232.6,0.50145]
[1762525705434,0.50144,3232.7,3232.6,0.50145]
[1762525706737,3.2078,3232.9,3232.2,0.00464288]
[1762525706929,0.50149,3232.6,3232.5,0.50145]
[1762525707235,3.2078,3232.9,3232.8,0.74172]
[1762525708237,0.50139,3233.0,3232.9,0.50141]
[1762525708729,0.50137,3233.2,3233.1,0.50137]
[1762525709234,0.50138,3233.1,3233.0,0.1453]
[1762525709533,0.00303105,3233.5,3233.4,0.73443]
[1762525709729,0.00303105,3233.5,3233.0,0.1453]
[1762525709929,0.50136,3233.2,3233.1,0.50138]
[1762525710235,3.2078,3233.3,3232.7,0.2331]
[1762525710429,3.2078,3233.3,3232.5,2.36473097]
[1762525710430,0.50144,3232.7,3232.6,0.73455]
[1762525710632,0.50144,3232.7,3232.6,0.2331]
[1762525711335,3.70923,3232.8,3232.7,0.50144]
[1762525712135,0.50141,3232.9,3232.8,0.5014]
[1762525712732,0.74421,3232.9,3232.8,0.5014]
[1762525713127,0.74426,3232.7,3232.6,0.50146]
[1762525713328,3.2078,3232.8,3232.2,2.22107385]
[1762525713529,0.7443,3232.4,3232.3,0.50148]
[1762525714434,0.7443,3232.3,3232.2,0.00464288]
[1762525714640,0.2428,3232.7,3232.6,0.50145]
[1762525715039,0.74424,3232.7,3232.2,0.00464288]
[1762525715336,0.74424,3232.7,3232.6,0.50146]
[1762525715532,0.50149,3232.5,3232.4,0.50147]
[1762525715735,3.2078,3232.8,3232.2,0.00464288]
[1762525715736,0.5015,3232.3,3232.2,0.00464288]
[1762525715937,0.7443,3232.3,3232.2,0.00464288]
[1762525716531,0.2428,3232.3,3232.2,0.00464288]
[1762525716739,3.70929,3232.4,3232.3,0.5015]
[1762525717539,3.2078,3232.8,3232.7,0.50143]
[1762525717839,0.50146,3232.7,3232.6,0.50145]
[1762525718039,3.2078,3232.8,3232.7,0.50144]
[1762525718239,0.50146,3232.6,3232.5,0.1453]
[1762525718429,0.50146,3232.6,3232.5,0.64675]
[1762525718843,3.95203,3232.8,3232.7,0.50144]
[1762525719336,0.7443,3232.4,3232.3,0.5015]
[1762525720135,0.50145,3232.7,3232.6,0.50145]
[1762525720336,3.2078,3232.8,3232.7,0.50144]
[1762525720533,3.70922,3232.8,3232.7,0.50144]
[1762525721039,0.50146,3232.6,3232.5,0.65646]
[1762525722136,0.50144,3232.7,3232.6,0.50144]
[1762525722743,0.50146,3232.6,3232.5,0.89777]
[1762525723537,3.2078,3232.8,3232.7,0.50144]
[1762525723744,3.2078,3232.8,3232.7,0.74274]
[1762525723938,3.70918,3233.2,3233.1,0.50134]
[1762525724336,3.2078,3233.2,3233.1,0.74264]